Cogmind - Beta 13 @@@ ROGUE MODE // 2024.04.22 @ 00:11:52 Player: DGSTER Result: Destroyed by G-47 Trooper with Particle Gun Performance ------------- Evolutions (2) 1000 Regions Visited (3) 600 Robots Destroyed (48) 240 Value Destroyed (1610) 1610 Prototype IDs (4) 80 Alien Tech Used (0) 0 Bonus (-48) -48 TOTAL SCORE: 3482 Bonus ------- Friendly Fire -48 Cogmind --------- Core Integrity 0/550 Matter 274/300 Energy 290/290 System Corruption 20% Temperature Hot (277) Movement Walking (190) Ox1 Location -8/Materials Parts ------- > --- POWER (1) -------- Improved Deuterium Engine (fused) > --- PROPULSION (2) --- Improved Carbon-fiber Leg Improved Carbon-fiber Leg > --- UTILITY (5) ------ Large Storage Unit Targeting Computer Core Analyzer Armor Integrity Analyzer > --- WEAPON (3) ------- Gauss Rifle Axe > --- INVENTORY (15) --- Improved Carbon-fiber Leg Improved Carbon-fiber Leg Improved Heat Sink Improved Cooling System Improved Cooling System Authchip [R/Combat] Peak State ------------ > --- POWER ------------ Improved Deuterium Engine > --- PROPULSION ------- Improved Carbon-fiber Leg Improved Carbon-fiber Leg > --- UTILITY ---------- Large Storage Unit Targeting Computer Core Analyzer Armor Integrity Analyzer Hacking Suite > --- WEAPON ----------- Pulse Rifle Pulse Rifle Axe > --- INVENTORY -------- Improved Carbon-fiber Leg Improved Heat Sink Improved Cooling System Authchip [R/Combat] Gauss Rifle [Rating: 35] Favorites ----------- Power Ion Engine Engine Ion Engine Power Core Light Nuclear Core Propulsion Light Treads Treads Light Treads Leg Improved Carbon-fiber Leg Wheel Compact Wheel Utility Hacking Suite Device High-powered Tractor Beam Storage Large Storage Unit Processor Targeting Computer Hackware Hacking Suite Protection Hardened Light Armor Plating Weapon Maul Energy Gun Pulse Rifle Ballistic Gun Minigun Launcher Advanced EMP Blaster Impact Weapon Maul Slashing Weapon Axe Build | -11 -10 -9 -8 ------- Run | Yrd Mat Mat Mat Slots Evolved 4 | . . 2 2 Power . | . . . . Propulsion . | . . . . Utility 3 | . . 2 1 Weapon 1 | . . . 1 Parts Attached 51 | 5 2 6 38 Power 7 | 1 . . 6 Engine 5 | 1 . . 4 Core 2 | . . . 2 Reactor . | . . . . Propulsion 15 | 2 . 2 11 Treads 8 | 2 . . 6 Leg 5 | . . . 5 Wheel 2 | . . 2 . Hover . | . . . . Flight . | . . . . Utility 14 | 1 1 3 9 Device 3 | . . 1 2 Storage 2 | 1 . 1 . Processor 3 | . . . 3 Hackware 1 | . 1 . . Protection 5 | . . 1 4 Artifact . | . . . . Weapon 15 | 1 1 1 12 Energy Gun 7 | 1 . 1 5 Energy Cannon . | . . . . Ballistic Gun 3 | . . . 3 Ballistic Cannon . | . . . . Launcher 2 | . . . 2 Special Weapon . | . . . . Impact Weapon 1 | . 1 . . Slashing Weapon 2 | . . . 2 Piercing Weapon . | . . . . Special Melee Weapon . | . . . . Unidentified Prototypes 4 | . . 1 3 Corrupted Parts 2 | . . . 2 System Corruption 10 | . . . 10 Parts Lost 22 | . . 1 21 Power 4 | . . . 4 Propulsion 4 | . . . 4 Utility 9 | . . 1 8 Weapon 5 | . . . 5 Highest Loss Streak 6 | . . 1 6 To Critical Strikes . | . . . . Average Slot Usage (%) 80 | . 87 83 77 Engine 7 | . 14 11 4 Core 1 | . . . 2 Treads 14 | . 28 21 7 Leg 1 | . . . 2 Wheel 1 | . . . 2 Device 1 | . . 4 . Storage 10 | . 14 11 9 Processor 5 | . . . 9 Hackware 8 | . 6 11 8 Protection 6 | . . 1 10 Energy Gun 7 | . 14 11 4 Ballistic Gun 3 | . . . 5 Impact Weapon 8 | . 9 11 7 Naked Turns . | . . . . Heaviest Build 50 | 12 15 36 50 Greatest Support 40 | 40 40 40 40 Greatest Overweight (x) 15 | . . 1 15 Average Overweight (x) . | . . . 1 Largest Inventory Capacity 15 | 8 8 15 15 Average Capacity 12 | 7 8 8 15 Most Carried 12 | 3 3 8 12 Average Carried 5 | 1 1 5 7 Final Capacity 15 | 8 8 15 15 Final Carried 8 | 1 3 8 6 Class Distribution -------------------- 88% | Mutant 11% | Scavenger-Mutant Dominant Class ---------------- Mutant | -10/Materials Mutant | -9/Materials Mutant | -8/Materials Resources | -11 -10 -9 -8 ----------- Run | Yrd Mat Mat Mat Matter Collected 778 | 206 64 20 488 Remotely 30 | . . 10 20 Salvage Created 1764 | . 216 362 1186 Parts 63 | . 14 7 42 Haulers Intercepted 3 | . . 1 2 Recyclers Shooed 1 | . . . 1 Parts Field Recycled . | . . . . Retrieved Matter . | . . . . Parts Self-Destructed . | . . . . Prevented . | . . . . Kills | -11 -10 -9 -8 ------- Run | Yrd Mat Mat Mat Combat Hostiles Destroyed 37 | . 5 12 20 Melee 16 | . . 5 11 Guns 5 | . 1 1 3 AOE 3 | . 3 . . Classes Destroyed 12 | . 5 3 4 Worker 4 | . . 1 3 Builder 1 | . 1 . . Hauler 3 | . . 1 2 Recycler 1 | . . . 1 Operator 1 | . 1 . . Watcher 1 | . 1 . . Swarmer 5 | . 1 4 . Grunt 18 | . 4 7 7 Duelist 1 | . . . 1 Sentry 4 | . . 1 3 Specialist 6 | . . . 6 Hunter 3 | . . . 3 Best Kill Streak 4 | . 4 4 4 Combat Bots Only 4 | . 3 4 3 Max Kills in Single Turn 3 | . 3 1 1 Gunslinging . | . . . . Exploded 1 | . 1 . . Melee 1 | . . 1 1 Uniques/NPCs Destroyed . | . . . . Combat | -11 -10 -9 -8 -------- Run | Yrd Mat Mat Mat Hostile Shots Fired 311 | . 31 55 225 Missed 82 | . 15 8 59 Damage Taken 4028 | . 181 487 3360 Core 756 | . 55 140 561 Absorbed by Shields . | . . . . Core Remaining (%) 81 | 100 78 65 . Volleys Fired 60 | . 23 6 31 Largest 2 | . 1 1 2 Hottest 126 | . 40 56 126 Shots Fired 70 | . 23 6 41 Gun 67 | . 23 6 38 Cannon . | . . . . Launcher 3 | . . . 3 Special . | . . . . Kinetic 22 | . . . 22 Thermal 22 | . . 6 16 Explosive . | . . . . Electromagnetic 26 | . 23 . 3 Robot Hit Streak 9 | . 4 6 9 Robot Miss Streak 3 | . 3 1 2 Penetration Max 1 | . . . 1 Secondary Targets 1 | . . . 1 Max Gunslinging Chain 1 | . . . 1 Shots Hit Robots 139 | . 15 34 90 Core Hits 36 | . 8 6 22 Critical Kills 1 | . . . 1 Critical Parts Destroyed 18 | . 1 7 10 Critical Strikes 24 | . 1 7 16 Smash 20 | . 1 7 12 Sever 4 | . . . 4 Melee Attacks 112 | . 2 38 72 Impact 91 | . 2 38 51 Slashing 21 | . . . 21 Piercing . | . . . . Sneak Attacks 9 | . . 1 8 Combat Hostiles 2 | . . . 2 Follow-up Attacks . | . . . . Damage Inflicted 4988 | . 696 1289 3003 Guns 790 | . 191 102 497 Cannons . | . . . . Explosions 499 | . 436 . 63 Melee 3699 | . 69 1187 2443 Ramming . | . . . . Kinetic 258 | . . . 258 Thermal 777 | . 436 102 239 Explosive . | . . . . Electromagnetic 254 | . 191 . 63 Impact 3035 | . 69 1187 1779 Slashing 664 | . . . 664 Piercing . | . . . . Highest Corruption 20 | . . . 20 Average Corruption 12 | . . . 12 Corruption Purged . | . . . . Corruption Blocked . | . . . . Effects 31 | . . . 31 Message Errors 7 | . . . 7 Matter Fused 11 | . . . 11 Heat Flow Errors 3 | . . . 3 Energy Discharges 5 | . . . 5 Parts Rejected 2 | . . . 2 Parts Fused 1 | . . . 1 Data Loss (minor) 1 | . . . 1 Weapon Failures 1 | . . . 1 Overload Shots . | . . . . Overflow Damage 1144 | . 73 456 615 Projectiles . | . . . . Explosions 33 | . 33 . . Melee 1111 | . 40 456 615 Knockbacks 20 | . 1 10 9 Impact 18 | . 1 10 7 Kinetic . | . . . . Secondary 2 | . . . 2 Self-Inflicted Damage 25 | . . . 25 Shots 2 | . . . 2 Rammed . | . . . . Targets Rammed . | . . . . Kicked . | . . . . Crushed . | . . . . Highest Temperature 269 | . 39 60 269 Average Temperature 67 | . 21 30 93 Received Heat Transfer 1098 | . 81 189 828 Siege Activations . | . . . . Robots Corrupted . | . . . . Combat Hostiles . | . . . . Parts Fried 21 | . 1 7 13 Impact Corruptions 40 | . 1 16 23 Robots Melted . | . . . . Combat Hostiles . | . . . . Parts Melted 4 | . 2 . 2 Heat Transferred 1190 | . 450 222 518 Parts Sabotaged . | . . . . Parts Stolen . | . . . . Parts Stripped . | . . . . Power Chain Reactions 3 | . 3 . . Alert | -11 -10 -9 -8 ------- Run | Yrd Mat Mat Mat Peak Influence 285 | . 244 282 285 Initial 102 | . . 102 56 Average 132 | . 65 135 156 Maximum Alert Level 1 | . 1 1 1 Low Security (%) 82 | 100 88 88 76 Level 1 17 | . 11 11 23 Level 2 . | . . . . Level 3 . | . . . . Level 4 . | . . . . Level 5 . | . . . . High Security . | . . . . Max Security . | . . . . Squads Dispatched 8 | . 1 2 5 Investigation 2 | . 1 1 . Extermination . | . . . . Reinforcement 6 | . . 1 5 Assault . | . . . . Garrison . | . . . . Intercept . | . . . . Searches Triggered . | . . . . Construction Impeded 1 | . . . 1 Haulers Reinforced . | . . . . Active Scanning Responses . | . . . . Cargo Convoy Interrupts . | . . . . Stealth | -11 -10 -9 -8 --------- Run | Yrd Mat Mat Mat Distress Signals 4 | . . . 4 Communications Jammed . | . . . . Distress Signals . | . . . . Times Spotted 61 | . 11 17 33 Peak Tracking Total 7 | . 7 4 4 Tactical Retreats 10 | . 1 4 5 Traps | -11 -10 -9 -8 ------- Run | Yrd Mat Mat Mat Traps Triggered . | . . . . Indirectly . | . . . . Trap Hack Attempts . | . . . . Triggered . | . . . . Disarmed . | . . . . Reprogrammed . | . . . . Reused . | . . . . Traps Extracted . | . . . . Installed . | . . . . Triggered 1 | . . 1 . Machines | -11 -10 -9 -8 ---------- Run | Yrd Mat Mat Mat Machines Disabled 3 | . 2 . 1 Max in Single Turn 2 | . 2 . 1 Machines Repaired . | . . . . Machines Dismantled . | . . . . Machines Sabotaged . | . . . . Overloaded Fab Kills . | . . . . Hacking | -11 -10 -9 -8 --------- Run | Yrd Mat Mat Mat Machines Accessed 4 | . 3 1 . Terminals 4 | . 3 1 . Fabricators . | . . . . Repair Stations . | . . . . Recycling Units . | . . . . Scanalyzers . | . . . . Garrison Access . | . . . . Total Hacks 8 | . 6 2 . Successful 5 | . 3 2 . Failed 3 | . 3 . . Catastrophic 1 | . 1 . . Database Lockouts . | . . . . Manual 5 | . 4 1 . Terminals 8 | . 6 2 . Fabricators . | . . . . Repair Stations . | . . . . Recycling Units . | . . . . Scanalyzers . | . . . . Garrison Access . | . . . . Terminal Hacks 2 | . . 2 . Alert Level 1 | . . 1 . Unreport Threat 1 | . . 1 . Fabricator Hacks . | . . . . Repair Station Hacks . | . . . . Recycling Unit Hacks . | . . . . Scanalyzer . | . . . . Garrison Access Hacks . | . . . . Unauthorized Hacks 3 | . 3 . . Terminals 3 | . 3 . . Assimilate 2 | . 2 . . Operators 1 | . 1 . . Fabricators . | . . . . Repair Stations . | . . . . Recycling Units . | . . . . Scanalyzers . | . . . . Garrison Access . | . . . . Data Cores Recovered . | . . . . Used . | . . . . Hacking Detections 4 | . 3 1 . Full Trace Events 1 | . 1 . . Feedback Events . | . . . . Feedback Blocked . | . . . . Robot Schematics Acquired . | . . . . Robots Built . | . . . . Authchips . | . . . . Time . | . . . . Total Robot Build Rating . | . . . . Part Schematics Acquired . | . . . . Parts Built . | . . . . Authchips . | . . . . Time . | . . . . Total Part Build Rating . | . . . . Parts Repaired . | . . . . Time . | . . . . Parts Recycled . | . . . . Recycled Matter . | . . . . Retrieved Matter . | . . . . Retrieved Components . | . . . . Parts Scanalyzed . | . . . . Part Schematics Acquired . | . . . . Parts Damaged . | . . . . Bothacking | -11 -10 -9 -8 ------------ Run | Yrd Mat Mat Mat Used RIF Installer . | . . . . Robots Hacked . | . . . . Non-combat . | . . . . Combat . | . . . . Robot Hacks Applied . | . . . . Relay Couplers Released . | . . . . Fabnet Peak Effective % . | . . . . Robots Rewired . | . . . . Allies Hacked . | . . . . Hacks Repelled . | . . . . Allies | -11 -10 -9 -8 -------- Run | Yrd Mat Mat Mat Total Allies 1 | . 1 . . Largest Group 1 | . 1 . . Highest-Rated Group 10 | . 10 . . Highest-Rated Ally 10 | . 10 . . Total Orders . | . . . . Ally Attacks . | . . . . Total Damage . | . . . . Kills . | . . . . Allies Corrupted . | . . . . Allies Melted . | . . . . Intel | -11 -10 -9 -8 ------- Run | Yrd Mat Mat Mat Robot Analysis Total . | . . . . Derelict Logs Recovered . | . . . . Drone Launches . | . . . . Drone Recoveries . | . . . . Exploration | -11 -10 -9 -8 ------------- Run | Yrd Mat Mat Mat Turns Passed 2160 | 80 275 638 1167 Spaces Moved 764 | 47 133 276 308 Core 42 | 5 . . 37 Treads 588 | 42 133 269 144 Legs 50 | . . . 50 Wheels 84 | . . 7 77 Hover . | . . . . Flight . | . . . . Fastest Speed 50 | 50 160 115 100 Average Speed 184 | 148 160 158 224 Slowest Speed 800 | 160 160 160 800 Overloaded Moves . | . . . . Propulsion Burnouts . | . . . . Robots Hopped . | . . . . Cave-ins Triggered . | . . . . Exploration Rate (%) 21 | 4 37 26 19 Regions Visited 3 Branch Regions . Pre-discovered Areas . | . . . . Known Exits Taken . | . . . . Unknown Exits Taken 3 | 1 1 1 . Scrap Searched . | . . . . Spaces Dug . | . . . . Terrain Destroyed 37 | . 37 . . Melee . | . . . . Projectile . | . . . . AOE 37 | . 37 . . Terrain Rammed . | . . . . Walls Destroyed . | . . . . Machines Disabled . | . . . . Actions | -11 -10 -9 -8 --------- Run | Yrd Mat Mat Mat Total 1229 | 57 168 393 611 Wait 171 | . 5 57 109 Move 761 | 46 132 275 308 Hop . | . . . . Pick Up 57 | 6 4 9 38 Fast Attach . | . . . . Attach 40 | 5 2 3 30 Detach . | . . . . Swap 11 | . . 3 8 Drop 17 | . . 2 15 Fire 60 | . 23 6 31 Melee 112 | . 2 38 72 Ram . | . . . . Kick . | . . . . Crush . | . . . . Escape Stasis . | . . . . Rewire . | . . . . Trap . | . . . . Miscellaneous . | . . . . Route ------- -11/Scrapyard -10/Materials -9/Materials -8/Materials History --------- Turn | Location | Event 10 | -11/Scrapyard | Discovered new exit (range 16) 81 | -11/Scrapyard | Entered Materials 316 | -10/Materials | Build established: Mutant 332 | -10/Materials | Discovered new exit (range 9) 356 | -10/Materials | Entered another Materials area 356 | -9/Materials | Evolved 2 slots: Utility x2 941 | -9/Materials | Discovered new exit (range 11) 994 | -9/Materials | Entered another Materials area 994 | -8/Materials | Evolved 2 slots: Utility x1, Weapon x1 1500 | -8/Materials | System corruption reached 10% 1757 | -8/Materials | Lost 6 parts (1p2n2u1w) 1800 | -8/Materials | Lost 3 parts (2u1w) 1950 | -8/Materials | Core integrity fell below 50% 2063 | -8/Materials | Core integrity fell below 20% 2161 | -8/Materials | Destroyed by G-47 Trooper with Particle Gun Last Messages --------------- System corrupted: Pulse Rifle rejected. K-01 Serf collects debris. R-06 Scavenger collects Gauss Rifle. U-05 Engineer builds a Wall. K-01 Serf collects debris. R-06 Scavenger collects Adv. Visual Processing Unit. R-06 Scavenger collects Carbon-fiber Leg. Knocked back. ALERT: Construction progress impeded, dispatching reinforcements to local area. K-01 Serf collects debris. Slug penetrates H-61 Shepherd. R-06 Scavenger collects Com. Wheel. System corrupted: Gauss Rifle jammed. K-01 Serf collects debris. R-06 Scavenger collects Tractor Beam. System corrupted: Matter fused (-5). Pulse Rifle destroyed. Slug penetrates H-61 Shepherd. Map ----- +----------------------------------------------------+ | ?????????????????????????????????????????????????? | | ?????????????????????????????????????????????????? | | ?????????????????????????????????????????????????? | | ?????????????????????????????????????????????????? | | ?????????????????????????????????????????????????? | | ?????????????????????????????????????????????????? | | ?????????????????????????????????????????????????? | | ?????????????????????????????????????????????????? | | ?????????????????????????????????????????????????? | | ?????????????????????????????????????????????????? | | ?????????????????????????????????????????????????? | | ?????????????????????????????????????????????????? | | ?????????????????????????????????????????????????? | | ?????????????????????????????????????????????????? | | ?????????????????????????????????????????????????? | | ?????????????????????????????????????????????????? | | ?????????????????????????????????????????????????? | | ?????????????? ????????????????????????????????? | | ?????????????# ??????????????????????????????? | | ?????????????? ??????????????????????????????? | | ???????????????? ??????????????????#??????????? | | ?????????????????? ##?????????????? ##?????????? | | ??????????? ###+################# #?????????? | | ?????????? ^ ^^ % #?????????? | | ?????????? g ^% k +?????????? | | ?????????? g ^ %@[ H #?????????? | | ????????????????# ! ##;;### #?????????? | | ????????????????# ##????????????????? ? | | ????????????????# r#?????????????????# | | ????????????????# " ##????????????????# | | ????????????????# #####?????????????# | | ????????????????# % ## ##?????????????# | | ????????????????# %%%# ###????????????# | | ????????????????# #####+###########????????# | | ????????????????# # # = % ! ! ##???????# | | ????????????????# ?### % #???????# "" | | ????????????????# ??# # !!! ##???????# "" | | ????????????????# ??# # % ! #????????# " | | ????????????????????### % !! #????????# | | ?????????????????????## % % #???????## | | ??????????????### #########+############### | | ??????? % % | | ??????? % | | ??????? """ """ """ """ | | ???????? ########+######+## """ """ """ """% | | ?????????????????????? # """ """ "" """ [ | | ?????????????????????# # % [! | | ?????????????????????# # % | | ?????????????????????? # | | ?????????????????????# # | +----------------------------------------------------+ Best States ------------- Heat Dissipation 45 Energy Generation 16 Energy Capacity 290 Matter Stores 300 Matter Capacity 300 Sight Range 16 Terrain Scan Density 10 Armor Coverage 450 Evasion (%) 45 Targeting Accuracy 5 Core Analysis 6 Armor Integrity Analysis 30 Recoil Reduction 2 Offensive Hacking 10 Authchip Count 1 Item Schematics ----------------- None Robot Schematics ------------------ None Fabricated ------------ Nothing Alien Tech Used ----------------- None Achievements -------------- None Challenges ------------ None Game ------ Seed MiniUltimateBlaster Manual? 0 Play Time 00:18:41 Cumulative 17.0 hours Start 2024.04.21 @ 23:53:13 End 2024.04.22 @ 00:11:52 Sessions 1 Manual Loads 0 Difficulty Rogue Special Mode None Game No. 20 Rogue 19 Adventurer 1 Explorer 0 Win Type - Total 0 Types 0/0/0/0/0/0/0/0/0 Lore% 22 Gallery% 26 Achievement% 23 Wizard Run 0 Options --------- Layout 1 ASCII 0 Keyboard 0 Movement Numpad Keybinds 0 Fullscreen 1 Font 24/Smallcaps Map View 50x35 Zoom Use 0% Tactical HUD 0 Map Filters NONE Filters NONE Steam 1 RUN: f43f23b2-8ebb-4480-9a8e-cae4cbd2de7f